bitfinex-derivatives/quotes_SOLF0:USTF0_20241227
["timestamp","ask_amount","ask_price","bid_price","bid_amount"]
[1735341709267,8.0945998,184.06,183.99,8.0945998]
[1735341709660,10.8150998,184.06,184.01,2.7211]
[1735341709859,8.0945998,184.04,184.02,3.16]
[1735341710064,10.8150998,184.06,184.02,3.16]
[1735341710765,10.8150998,184.06,184.01,3.16]
[1735341710968,10.8152998,184.04,184.01,3.16]
[1735341711368,8.0945998,184.04,184.01,3.16]
[1735341713869,8.0945998,184.06,184.01,5.881]
[1735341714860,10.8149998,184.06,184.01,5.881]
[1735341718067,8.0945998,184.06,184.01,5.881]
[1735341718275,2.7207,184.05,184.01,5.881]
[1735341721272,10.8152998,184.04,184.01,5.881]
[1735341721864,10.8152998,184.04,184.01,3.16]
[1735341723671,8.0945998,184.02,183.91,8.0945998]
[1735341723867,8.0945998,184.01,183.93,8.0945998]
[1735341724071,8.0945998,184.01,183.95,8.0945998]
[1735341724273,8.0945998,184.01,183.94,8.0945998]
[1735341724474,8.0945998,184.02,183.96,8.0945998]
[1735341724676,10.8155998,184.02,183.98,2.7215]
[1735341725176,8.0945998,184.02,183.97,4.767]
[1735341725368,2.7208,184.04,183.97,4.767]
[1735341725574,8.0945998,184.03,183.97,4.767]
[1735341726677,10.8154998,184.03,183.99,2.7214]
[1735341728167,1.7893,184.12,183.98,8.0945998]
[1735341728476,1.614,184.12,184.0,8.0945998]
[1735341728776,8.0945998,184.08,184.03,2.7208]
[1735341728977,8.0945998,184.08,184.03,5.9208]
[1735341729376,8.0945998,184.06,184.03,3.2]
[1735341735177,8.0945998,184.06,184.01,2.7211]
[1735341735580,8.0945998,184.04,184.01,2.7211]
[1735341736379,8.0945998,184.06,184.0,3.2]
[1735341736580,8.0945998,184.06,184.02,2.721]
[1735341741390,8.0945998,184.03,184.0,3.2]
[1735341744094,8.0945998,184.03,183.97,1.567]
[1735341744392,8.0945998,184.03,183.98,3.18]
[1735341745388,8.0945998,184.03,183.97,1.567]
[1735341745588,3.18,184.09,183.97,4.747]
[1735341745589,10.8158998,184.01,183.97,4.747]
[1735341746086,10.8158998,184.01,183.97,7.4687]
[1735341746390,2.721,184.02,183.97,7.4687]
[1735341746586,1.614,184.12,183.98,8.0945998]
[1735341746789,8.0945998,184.07,184.0,8.0945998]
[1735341747091,8.0945998,184.07,184.01,3.246]
[1735341747290,8.0945998,184.07,184.02,3.18]
[1735341748689,8.0945998,184.07,184.04,2.7206]
[1735341749598,8.0945998,184.07,184.03,2.7208]
[1735341750689,8.0945998,184.07,184.01,3.246]
[1735341750690,2.7206,184.05,184.01,5.967]
[1735341750896,8.0945998,184.07,184.02,3.18]
[1735341752397,2.7204,184.06,184.02,3.18]
[1735341753497,2.7206,184.05,184.02,3.18]
[1735341753697,8.0945998,184.05,184.02,3.18]
[1735341755194,2.7207,184.04,184.02,3.18]
[1735341756801,2.7208,184.03,184.02,3.18]
[1735341761303,8.0945998,184.05,184.0,5.9013]
[1735341761508,2.7207,184.04,184.0,5.9013]
[1735341762509,2.7209,184.03,184.0,5.9013]
[1735341768509,2.7212,184.01,183.97,2.7217]
[1735341770515,2.7212,184.01,183.98,3.18]
[1735341770917,2.7212,184.01,183.97,2.7217]
[1735341771118,2.7212,184.01,183.98,3.18]
[1735341772915,0.1731,184.11,183.98,3.18]
[1735341773221,8.0945998,184.05,184.0,2.7212]
[1735341774020,2.7208,184.04,184.0,2.7212]
[1735341774418,0.1731,184.11,184.02,2.721]
[1735341774719,8.0945998,184.07,184.03,3.16]
[1735341775420,10.8149998,184.07,184.03,5.8808]
[1735341775819,0.1743,184.16,184.03,3.16]
[1735341776026,8.0945998,184.12,184.06,8.0945998]
[1735341776325,8.0945998,184.14,184.06,8.0945998]
[1735341777623,2.16420046,184.23,184.08,8.0945998]
[1735341777820,8.0945998,184.18,184.12,8.0945998]
[1735341778426,8.0945998,184.18,184.13,2.7192]
[1735341778626,8.0945998,184.18,184.14,3.14]
[1735341780024,10.8131998,184.18,184.14,3.14]
[1735341780226,2.16420046,184.23,184.1,8.0945998]
[1735341780525,8.0945998,184.16,184.11,3.14]
[1735341781226,8.0945998,184.16,184.11,5.8595]
[1735341781823,8.0945998,184.16,184.11,3.14]
[1735341782024,2.7193,184.14,184.11,3.14]
[1735341783223,2.7191,184.15,184.11,3.14]
[1735341784028,8.0945998,184.16,184.11,3.14]
[1735341784222,8.0945998,184.17,184.11,3.14]
[1735341785536,2.7189,184.16,184.11,5.8597]
[1735341785726,8.0945998,184.17,184.11,3.14]
[1735341785926,8.0945998,184.17,184.12,8.0945998]
[1735341786129,8.0945998,184.17,184.12,9.7865998]
[1735341786832,8.0945998,184.19,184.12,9.7865998]
[1735341787528,2.7188,184.18,184.13,2.7193]
[1735341789834,8.0945998,184.19,184.12,9.7865998]
[1735341790033,8.0945998,184.17,184.12,4.4115]
[1735341791238,2.7188,184.17,184.12,4.4115]
[1735341796432,2.7188,184.17,184.12,1.692]
[1735341796638,8.0945998,184.19,184.12,1.692]
[1735341797439,2.719,184.16,184.12,1.692]
[1735341797638,2.719,184.16,184.13,3.14]
[1735341799043,2.16420046,184.23,184.14,8.0945998]
[1735341799241,2.16420046,184.23,184.16,8.0945998]
[1735341799441,2.7181,184.22,184.17,2.7187]
[1735341799641,2.7181,184.22,184.18,3.14]
[1735341800639,4.88210046,184.23,184.18,5.8586]
[1735341801140,2.16420046,184.23,184.19,2.7184]
[1735341801344,8.0945998,184.24,184.18,11.2345998]
[1735341801941,8.0945998,184.24,184.2,2.7183]
[1735341802447,8.0945998,184.27,184.21,2.7181]
[1735341802947,8.0945998,184.27,184.2,8.0945998]
[1735341804047,2.7175,184.26,184.2,10.8127998]
[1735341804243,3.16,184.34,184.2,8.0945998]
[1735341804448,8.0945998,184.28,184.22,8.0945998]
[1735341804640,2.7167,184.31,184.26,2.7174]
[1735341805040,8.0945998,184.32,184.24,8.0945998]
[1735341805245,2.717,184.29,184.24,10.8121998]
[1735341805445,8.0945998,184.32,184.24,8.0945998]
[1735341805846,2.7169,184.3,184.25,2.7176]
[1735341806152,8.0945998,184.32,184.24,8.0945998]
[1735341806349,2.7173,184.27,184.23,3.16]
[1735341809552,8.0945998,184.28,184.23,3.16]
[1735341809553,2.7177,184.25,184.23,3.16]
[1735341810558,8.0945998,184.28,184.23,3.16]
[1735341810747,8.0945998,184.26,184.21,3.16]
[1735341811157,2.7179,184.24,184.21,3.16]
[1735341814868,2.7179,184.23,184.21,3.16]
[1735341816569,2.7179,184.23,184.2,3.3132]
[1735341816968,2.7179,184.23,184.21,3.16]
[1735341818466,2.718,184.22,184.21,3.16]
[1735341818772,2.718,184.22,184.19,3.16]
[1735341820780,8.0945998,184.25,184.15,4.7769]
[1735341821069,2.7183,184.2,184.19,3.16]
[1735341821371,8.0945998,184.23,184.18,3.16]
[1735341821874,2.7184,184.2,184.18,3.16]
[1735341822074,8.0945998,184.23,184.18,3.16]
[1735341822275,1.7054,184.28,184.18,3.16]
[1735341822574,2.7181,184.22,184.18,3.16]
[1735341824778,8.0945998,184.24,184.18,3.16]
[1735341824973,2.7182,184.21,184.18,3.16]
[1735341827079,2.7183,184.2,184.18,3.16]
[1735341827275,8.0945998,184.22,184.17,3.16]
[1735341827475,8.0945998,184.22,184.16,8.0945998]
[1735341827778,8.0945998,184.22,184.16,11.2545998]
[1735341828480,2.7184,184.2,184.16,13.9734998]
[1735341828781,8.0945998,184.22,184.16,13.9734998]
[1735341828973,8.0945998,184.22,184.16,11.2545998]
[1735341829175,2.7185,184.19,184.16,11.2545998]
[1735341829375,2.7185,184.19,184.16,3.16]
[1735341830079,8.0945998,184.22,184.16,3.16]
[1735341830281,2.7187,184.18,184.16,3.16]
[1735341830980,8.0945998,184.22,184.16,3.16]
[1735341831175,8.0945998,184.22,184.16,11.2545998]
[1735341832071,2.7185,184.2,184.16,13.9733998]
[1735341832270,8.0945998,184.22,184.16,3.16]
[1735341832474,1.7054,184.28,184.16,3.16]
[1735341832475,8.0945998,184.2,184.16,3.16]
[1735341833281,2.7187,184.18,184.16,3.16]
[1735341836587,2.7184,184.2,184.16,5.8788]
[1735341836789,1.7054,184.28,184.16,11.2545998]
[1735341836981,8.0945998,184.24,184.16,11.2545998]
[1735341837883,8.0945998,184.24,184.17,3.16]
[1735341838085,2.7182,184.22,184.18,2.7186]
[1735341838884,8.0945998,184.22,184.17,5.8787]
[1735341839885,8.0945998,184.22,184.17,3.16]
[1735341840088,8.0945998,184.2,184.17,3.16]
[1735341840289,8.0945998,184.2,184.15,4.3175]
[1735341840489,2.7185,184.19,184.15,7.4775]
[1735341841794,2.7185,184.19,184.15,4.3175]
[1735341841992,2.7186,184.18,184.15,4.7586]
[1735341843494,2.7186,184.18,184.15,1.5986]
[1735341844193,8.0945998,184.2,184.15,1.5986]
[1735341844494,8.0945998,184.22,184.15,9.6931998]
[1735341845288,10.8126998,184.22,184.17,2.7188]
[1735341845692,8.0945998,184.24,184.17,8.0945998]
[1735341845892,2.16332805,184.3,184.19,8.0945998]
[1735341846192,8.0945998,184.26,184.2,3.16]
[1735341847387,2.16332805,184.3,184.23,8.0945998]
[1735341847594,10.25792785,184.3,184.23,8.0945998]
[1735341847984,10.25792785,184.3,184.25,2.7175]
[1735341848185,2.16332805,184.3,184.26,3.16]
[1735341848597,8.0945998,184.32,184.26,3.16]
[1735341849496,2.7169,184.3,184.26,3.16]
[1735341850398,10.8109998,184.34,184.29,2.717]
[1735341851393,2.7164,184.34,184.3,2.7168]
[1735341851600,2.7161,184.35,184.31,3.16]
[1735341852502,2.7161,184.35,184.31,5.8767]
[1735341853397,10.8105998,184.36,184.32,2.7165]
[1735341854602,2.7162,184.35,184.31,5.8767]
[1735341857501,8.0945998,184.39,184.32,8.0945998]
[1735341857700,8.0945998,184.39,184.32,9.7151998]
[1735341857998,3.16,184.49,184.34,8.0945998]
[1735341858306,8.0945998,184.42,184.34,8.0945998]
[1735341858601,2.7154,184.4,184.36,2.7158]
[1735341858804,2.7154,184.4,184.37,3.16]
[1735341859505,10.8097998,184.42,184.37,5.8758]
[1735341859707,8.0945998,184.42,184.37,5.8758]
[1735341860405,2.7153,184.41,184.37,3.16]
[1735341861003,2.7151,184.43,184.38,8.0945998]
[1735341861306,39.47300019,184.49,184.38,8.0945998]
[1735341861508,8.0945998,184.46,184.38,8.0945998]
[1735341861807,2.7149,184.43,184.39,2.7154]
[1735341865306,2.7145,184.46,184.41,2.7152]
[1735341865513,2.7145,184.46,184.42,3.18]
[1735341866404,10.8088998,184.48,184.42,13.9895998]
[1735341867012,10.8088998,184.48,184.42,11.2745998]
[1735341867013,2.7143,184.48,184.42,11.2745998]
[1735341868109,8.0945998,184.5,184.44,8.0945998]
[1735341868312,2.714,184.5,184.44,8.0945998]
[1735341869510,2.714,184.5,184.45,2.7146]
[1735341870210,8.0945998,184.49,184.42,3.18]
[1735341870804,2.7145,184.47,184.42,3.18]
[1735341873209,2.7142,184.49,184.42,3.18]
[1735341873420,2.7142,184.49,184.43,8.0945998]
[1735341873618,8.0945998,184.51,184.45,8.0945998]
[1735341874410,2.7139,184.5,184.45,10.8090998]
[1735341875615,8.0945998,184.51,184.43,8.0945998]
[1735341875914,2.7143,184.48,184.43,10.8093998]
[1735341876515,2.7144,184.47,184.43,10.8093998]
[1735341876910,2.7144,184.47,184.44,3.18]
[1735341889618,2.7138,184.51,184.46,2.7143]
[1735341889821,2.7138,184.51,184.45,8.0945998]
[1735341890325,2.7138,184.51,184.47,2.7143]
[1735341891017,11.2096412,184.52,184.45,8.0945998]
[1735341891222,2.7139,184.5,184.46,2.7145]
[1735341892231,2.7139,184.5,184.47,2.7143]
[1735341893433,2.7139,184.5,184.44,3.18]
[1735341893623,2.7139,184.5,184.46,2.7145]
[1735341896932,8.0945998,184.5,184.44,3.18]
[1735341897131,8.0945998,184.48,184.45,3.16]
[1735341897323,2.7145,184.46,184.45,3.16]
[1735341898533,2.7145,184.46,184.43,3.16]
[1735341898935,2.7145,184.46,184.42,2.7151]
[1735341899136,2.7145,184.46,184.43,3.16]
[1735341900828,2.7148,184.45,184.43,3.16]
[1735341901032,8.0945998,184.46,184.41,10.22066768]
[1735341901228,8.0945998,184.46,184.42,3.16]
[1735341901634,2.7147,184.45,184.42,5.8751]
[1735341901838,2.7147,184.45,184.42,3.16]
[1735341902034,2.7147,184.45,184.39,11.4404998]
[1735341902035,8.0945998,184.45,184.39,12.35006768]
[1735341902240,8.0945998,184.45,184.39,15.06546768]
[1735341902738,2.7152,184.42,184.39,10.66546768]
[1735341903332,2.7155,184.4,184.36,7.50546768]
[1735341903536,8.0945998,184.41,184.36,7.50546768]
[1735341903836,8.0945998,184.41,184.36,10.66546768]
[1735341904233,8.0945998,184.41,184.36,3.16]
[1735341904541,3.16,184.47,184.36,3.16]
[1735341904740,8.0945998,184.42,184.36,3.16]
[1735341905038,2.7154,184.41,184.37,2.7158]
[1735341905243,8.0945998,184.42,184.36,3.16]
[1735341905442,8.0945998,184.4,184.34,1.66]
[1735341905634,2.716,184.36,184.35,3.16]
[1735341905838,2.716,184.36,184.32,3.16]
[1735341906144,8.0945998,184.38,184.32,3.16]
[1735341906335,8.0945998,184.4,184.33,8.0945998]
[1735341907044,2.7157,184.39,184.34,2.7162]
[1735341907242,8.0945998,184.4,184.32,11.2545998]
[1735341907435,8.0945998,184.38,184.32,11.2545998]
[1735341907841,8.0945998,184.36,184.31,3.16]
[1735341908240,2.7164,184.34,184.31,3.16]
[1735341909736,2.7164,184.34,184.3,3.16]
[1735341910045,2.7164,184.34,184.3,11.2545998]
[1735341911448,2.7164,184.34,184.3,13.9713998]
[1735341912550,2.7164,184.34,184.3,3.16]
[1735341912749,2.7165,184.33,184.3,3.16]
[1735341912941,2.7165,184.33,184.29,4.8173]
[1735341913146,8.0945998,184.34,184.29,1.6573]
[1735341913343,2.7168,184.31,184.28,3.16]
[1735341913547,8.0945998,184.32,184.27,3.16]
[1735341914650,2.7169,184.3,184.27,3.16]
[1735341917243,2.7171,184.29,184.24,8.0945998]
[1735341917442,8.0945998,184.3,184.25,3.16]
[1735341917645,8.0945998,184.3,184.24,3.16]
[1735341917845,8.0945998,184.28,184.24,3.16]
[1735341918050,2.7176,184.25,184.22,8.0945998]
[1735341918246,8.0945998,184.28,184.22,11.2545998]
[1735341918451,8.0945998,184.28,184.22,3.16]
[1735341919056,8.0945998,184.28,184.22,11.2545998]
[1735341920449,8.0945998,184.26,184.18,1.5721]
[1735341920654,8.0945998,184.26,184.19,11.2545998]
[1735341920857,8.0945998,184.2,184.1,29.88270332]
[1735341921151,3.16,184.26,184.12,8.0945998]
[1735341921349,8.0945998,184.21,184.14,8.0945998]
[1735341922057,10.8127998,184.21,184.17,2.7187]
[1735341922351,8.0945998,184.21,184.17,2.7187]
[1735341922549,16.34,184.37,184.16,11.2545998]
[1735341922550,8.0945998,184.23,184.16,11.2545998]
[1735341922744,8.0945998,184.25,184.18,8.0945998]
[1735341923152,10.8122998,184.25,184.2,2.7183]
[1735341923350,10.8122998,184.25,184.18,8.0945998]
[1735341923351,8.0945998,184.25,184.18,8.0945998]
[1735341923547,1.6426,184.3,184.18,8.0945998]
[1735341923745,8.0945998,184.27,184.23,2.7178]
[1735341923950,16.34,184.42,184.19,1.544]
[1735341923951,3.16,184.36,184.22,11.2545998]
[1735341924254,8.0945998,184.29,184.22,11.2545998]
[1735341924549,10.8116998,184.29,184.22,11.2545998]
[1735341924748,8.0945998,184.29,184.22,11.2545998]
[1735341924953,8.0945998,184.31,184.24,8.0945998]
[1735341925348,8.0945998,184.31,184.27,2.7173]
[1735341926250,4.8026,184.37,184.23,3.1236]
[1735341926251,8.0945998,184.29,184.23,3.1236]
[1735341926857,8.0945998,184.31,184.24,8.0945998]
[1735341928553,10.8112998,184.31,184.24,8.0945998]
[1735341928755,8.0945998,184.31,184.24,8.0945998]
[1735341929457,4.8026,184.37,184.23,3.1236]
[1735341929458,10.8110998,184.33,184.27,2.7172]
[1735341929660,8.0945998,184.33,184.28,3.2]
[1735341929858,2.7166,184.32,184.28,3.2]
[1735341930055,39.49910274,184.39,184.28,11.2945998]
[1735341930260,8.0945998,184.37,184.3,8.0945998]
[1735341930760,10.8105998,184.36,184.32,2.7165]
[1735341930954,10.8105998,184.36,184.3,8.0945998]
[1735341931151,1.6228,184.44,184.3,8.0945998]
[1735341931359,2.7157,184.38,184.33,2.7163]
[1735341931550,8.0945998,184.39,184.34,3.2]
[1735341932555,10.8100998,184.39,184.34,5.9162]
[1735341933664,2.7157,184.38,184.34,3.2]
[1735341933861,8.0945998,184.39,184.34,3.2]
[1735341935464,2.7159,184.37,184.34,3.2]
[1735341937567,8.0945998,184.39,184.34,3.2]
[1735341938761,8.0945998,184.37,184.33,3.2]
[1735341939768,2.7162,184.35,184.3,5.9168]
[1735341939965,1.6228,184.44,184.3,5.9168]
[1735341939966,8.0945998,184.38,184.31,8.0945998]
[1735341940164,2.7158,184.37,184.31,8.0945998]
[1735341940363,8.0945998,184.38,184.31,11.2750998]
[1735341940862,2.7157,184.38,184.33,2.7163]
[1735341941064,2.7157,184.38,184.31,11.2750998]
[1735341941661,2.7157,184.38,184.33,2.7164]
[1735341941968,10.8102998,184.38,184.33,2.7164]
[1735341942160,2.7158,184.37,184.33,2.7164]
[1735341944580,10.8102998,184.38,184.33,2.7164]
[1735341944975,2.7157,184.38,184.33,2.7164]
[1735341946877,8.0945998,184.4,184.33,2.7164]
[1735341946878,8.0945998,184.4,184.35,2.7161]
[1735341947082,0.1707,184.49,184.36,3.2]
[1735341947280,2.7152,184.42,184.37,2.7157]
[1735341948884,8.0945998,184.43,184.37,2.7157]
[1735341949183,2.7155,184.4,184.36,5.9159]
[1735341953379,8.0945998,184.41,184.36,3.2]
[1735341953584,2.7157,184.38,184.36,3.2]
[1735341955888,2.7155,184.4,184.36,3.2]
[1735341956286,8.0945998,184.41,184.36,3.2]
[1735341957088,2.7156,184.39,184.36,3.2]
[1735341960386,2.7153,184.41,184.37,2.7158]
[1735341960892,8.0945998,184.43,184.36,3.2]
[1735341962192,2.7154,184.4,184.36,5.9159]
[1735341964396,2.7153,184.41,184.37,2.7158]
[1735341964598,8.0945998,184.45,184.37,8.0945998]
[1735341965193,2.7149,184.43,184.39,2.7154]
[1735341966098,2.7149,184.43,184.4,2.7154]
[1735341966291,2.7149,184.43,184.41,3.18]
[1735341966497,8.0945998,184.45,184.41,3.18]
[1735341966700,2.7151,184.42,184.41,3.18]
[1735341969603,2.7148,184.44,184.41,3.18]
[1735341970398,2.7148,184.44,184.41,5.8952]
[1735341971004,2.7145,184.47,184.43,2.7149]
[1735341971798,2.7145,184.46,184.43,2.7149]
[1735341974003,8.0945998,184.47,184.41,3.18]
[1735341974705,8.0945998,184.45,184.41,3.18]
[1735341975203,2.715,184.43,184.41,3.18]
[1735341976003,8.0945998,184.45,184.41,3.18]
[1735341976204,8.0945998,184.47,184.41,5.8951]
[1735341977007,2.7146,184.46,184.42,2.715]
[1735341978109,2.7148,184.45,184.41,5.8952]
[1735341980109,8.0945998,184.45,184.41,3.18]
[1735341980311,2.7151,184.43,184.41,3.18]
[1735341980612,8.0945998,184.45,184.41,3.18]
[1735341981808,8.0945998,184.43,184.41,3.18]
[1735341982311,2.7151,184.42,184.41,3.18]
[1735341983213,2.7151,184.42,184.38,5.8679]
[1735341983413,8.0945998,184.41,184.34,31.57400332]
[1735341983605,2.7155,184.39,184.35,3.18]
[1735341985514,2.7155,184.39,184.35,5.8961]
[1735341986613,2.7155,184.39,184.35,2.7161]
[1735341986812,2.7155,184.39,184.36,3.18]
[1735341990419,2.7152,184.41,184.36,5.8959]
[1735341990718,8.0945998,184.43,184.36,5.8959]
[1735341991420,2.7155,184.4,184.36,5.8959]
[1735341995524,8.0945998,184.41,184.34,1.6913]
[1735341995721,8.0945998,184.39,184.35,3.18]
[1735341996319,2.7159,184.37,184.35,3.18]
[1735342001425,2.7159,184.37,184.34,4.4076]
[1735342001626,2.7159,184.37,184.34,7.5876]
[1735342001825,2.7159,184.37,184.34,4.4076]
[1735342002026,2.7159,184.37,184.35,3.18]
[1735342006226,8.0945998,184.37,184.28,7.50546768]
[1735342006531,8.0945998,184.33,184.27,31.46850332]
[1735342006731,2.717,184.3,184.28,3.18]
[1735342010232,2.717,184.3,184.27,4.7658]
[1735342011329,2.717,184.29,184.27,3.18]
[1735342011527,8.0945998,184.29,184.21,9.7072998]
[1735342011736,8.0945998,184.29,184.22,3.18]
[1735342012030,2.7172,184.28,184.23,2.7177]
[1735342012230,2.7172,184.28,184.23,10.8122998]
[1735342014030,8.0945998,184.31,184.23,8.0945998]
[1735342015237,8.0945998,184.31,184.26,2.7174]
[1735342015431,8.0945998,184.31,184.27,3.18]
[1735342015631,8.0945998,184.33,184.27,3.18]
[1735342016534,2.7167,184.32,184.28,2.7171]
[1735342016934,8.0945998,184.33,184.28,2.7171]
[1735342018536,2.7167,184.31,184.28,2.7171]
[1735342019040,2.7167,184.31,184.27,5.8973]
[1735342019840,10.8110998,184.33,184.28,2.717]
[1735342020038,39.48951983,184.42,184.29,8.0945998]
[1735342020233,8.0945998,184.36,184.29,8.0945998]
[1735342021439,10.8104998,184.37,184.32,2.7164]
[1735342021641,8.0945998,184.37,184.33,3.14]
[1735342022541,2.716,184.36,184.33,3.14]
[1735342023142,10.8103998,184.37,184.33,5.8563]
[1735342023444,10.8103998,184.37,184.33,3.14]
[1735342023644,10.8103998,184.37,184.34,2.7163]
[1735342024145,8.0945998,184.37,184.34,2.7163]
[1735342025639,10.8103998,184.37,184.33,5.8564]
[1735342028642,8.0945998,184.37,184.33,3.14]
[1735342029743,2.716,184.36,184.33,3.14]
[1735342029945,8.0945998,184.39,184.33,3.14]
[1735342030146,2.7158,184.38,184.33,5.8564]
[1735342031045,2.7158,184.38,184.34,2.7162]
[1735342035448,10.8100998,184.39,184.35,2.716]
[1735342035649,2.16151209,184.46,184.35,8.0945998]
[1735342035950,8.0945998,184.44,184.37,8.0945998]
[1735342036139,8.0945998,184.44,184.38,3.14]
[1735342037546,2.715,184.43,184.39,2.7154]
[1735342037846,8.0945998,184.44,184.39,2.7154]
[1735342038448,8.0945998,184.44,184.38,3.14]
[1735342038650,2.7152,184.42,184.38,5.8556]
[1735342039249,2.7153,184.41,184.38,5.8556]
[1735342041443,2.7151,184.42,184.38,5.8556]
[1735342041649,8.0945998,184.44,184.39,2.7154]
[1735342042052,2.715,184.43,184.38,3.14]
[1735342042554,2.7151,184.42,184.39,2.7155]
[1735342042850,2.7151,184.42,184.38,3.14]
[1735342043242,2.7151,184.42,184.38,5.8556]
[1735342043853,2.7151,184.42,184.38,3.14]
[1735342044052,2.7151,184.42,184.39,2.7155]
[1735342049552,2.715,184.43,184.39,2.7155]
[1735342049758,2.715,184.43,184.39,8.0945998]
[1735342049953,2.715,184.43,184.4,2.7153]
[1735342050353,2.715,184.43,184.39,10.8100998]
[1735342050558,2.715,184.43,184.39,2.7155]
[1735342055956,8.0945998,184.42,184.36,1.5854]
[1735342056162,8.0945998,184.4,184.37,3.14]
[1735342056659,2.7157,184.38,184.37,3.14]
[1735342057068,2.7155,184.4,184.37,3.14]
[1735342059765,2.7152,184.42,184.38,2.7156]
[1735342064467,8.0945998,184.43,184.37,3.14]
[1735342064771,8.0945998,184.41,184.37,3.14]
[1735342065172,8.0945998,184.39,184.32,29.88270332]
[1735342065363,8.0945998,184.39,184.33,3.14]
[1735342065569,2.7158,184.38,184.33,3.14]
[1735342065768,8.0945998,184.39,184.33,3.14]
[1735342066475,2.7161,184.36,184.33,3.14]
[1735342067777,8.0945998,184.37,184.31,1.6925]
[1735342067979,8.0945998,184.37,184.32,3.14]
[1735342069379,2.7162,184.35,184.32,3.14]
[1735342074987,2.7162,184.35,184.31,12.5037998]
[1735342075188,2.7162,184.35,184.32,3.14]
[1735342076586,1.5465,184.43,184.32,3.14]
[1735342076782,8.0945998,184.4,184.32,3.14]
[1735342077485,2.7157,184.38,184.34,2.7162]
[1735342078784,8.0945998,184.4,184.34,2.7162]
[1735342078984,2.7158,184.37,184.34,2.7162]
[1735342080688,2.7158,184.37,184.33,2.7164]
[1735342081088,9.6410998,184.43,184.35,8.0945998]
[1735342081392,8.0945998,184.43,184.38,2.7157]
[1735342081592,8.0945998,184.43,184.39,3.14]
[1735342082490,2.7151,184.42,184.39,3.14]
[1735342084290,8.0945998,184.43,184.39,3.14]
[1735342084488,2.7152,184.41,184.39,3.14]
[1735342089096,2.7154,184.4,184.39,3.14]
[1735342089297,8.0945998,184.41,184.36,3.14]
[1735342089488,8.0945998,184.39,184.36,3.14]
[1735342090498,2.7161,184.35,184.34,3.14]
[1735342092601,2.7164,184.34,184.32,3.14]
[1735342092792,2.7164,184.34,184.31,1.6925]
[1735342092991,2.7164,184.34,184.32,3.14]
[1735342093701,8.0945998,184.37,184.32,3.14]
[1735342094496,2.7164,184.34,184.32,3.14]
[1735342095805,8.0945998,184.35,184.31,3.14]
[1735342097405,2.7166,184.32,184.31,3.14]
[1735342097902,8.0945998,184.35,184.31,3.14]
[1735342098103,2.7164,184.33,184.31,3.14]
[1735342099110,8.0945998,184.35,184.31,3.14]
[1735342099312,2.7166,184.32,184.31,3.14]
[1735342102320,2.7169,184.3,184.28,3.14]
[1735342103420,2.7171,184.29,184.27,3.14]
[1735342103719,8.0945998,184.29,184.27,3.14]
[1735342104420,2.7171,184.28,184.27,3.14]
[1735342104822,2.7171,184.28,184.26,3.14]
[1735342111323,2.7175,184.26,184.25,3.14]
[1735342111525,8.0945998,184.29,184.24,3.14]
[1735342111729,8.0945998,184.27,184.24,3.14]
[1735342112326,8.0945998,184.27,184.19,9.7606998]
[1735342112522,8.0945998,184.25,184.21,3.14]
[1735342113429,8.0945998,184.27,184.21,3.14]
[1735342113732,8.0945998,184.27,184.21,11.2345998]
[1735342114431,2.7175,184.26,184.22,2.7179]
[1735342114827,8.0945998,184.27,184.22,2.7179]
[1735342115029,2.7177,184.25,184.21,13.9526998]
[1735342115330,2.7177,184.25,184.21,11.2345998]
[1735342115527,2.7178,184.24,184.21,13.9527998]
[1735342116228,2.7179,184.23,184.19,10.8129998]